fUSD/lending_fUSD_20240803
["ID","MTS","AMOUNT","RATE_DAILY","PERIOD"]
[333993745,1722666778491,-1122.59,0.00019178,2]
[333993746,1722666778501,-576.06,0.00019178,2]
[333993747,1722666778511,-793.05,0.00019178,2]
[333993748,1722666778520,-1726.0,0.00019178,2]
[333993749,1722666778529,-3672.81,0.00019178,2]
[333993750,1722666778539,-3286.16,0.00019178,2]
[333993751,1722666778549,-3453.65,0.00019178,2]
[333993752,1722666778558,-500.0,0.00019178,2]
[333993753,1722666778567,-1612.0,0.00019178,2]
[333993754,1722666778576,-15160.97,0.00019178,2]
[333993755,1722666778586,-1516.13,0.00019178,2]
[333993756,1722666778595,-1029.84,0.00019178,2]
[333993757,1722666778604,-1177.76,0.00019178,2]
[333993758,1722666778613,-681.33,0.00019178,2]
[333993759,1722666778622,-1021.92312856,0.00019178,2]
[333993760,1722666779648,-354.16960267,0.00019178,2]
[333993761,1722666779665,-250.13277065,0.00019178,2]
[333993762,1722666779690,-586.84677165,0.00018904,2]
[333993763,1722666779703,-338.805,0.00018904,2]
[333993764,1722666779729,-298.14275844,0.00017782,2]
[333993765,1722666779742,-685.3,0.00017808,2]
[333993766,1722666779752,-2603.67,0.00018356,2]
[333993767,1722666779763,-855.21822835,0.00018904,2]
[333993768,1722666779772,-1004.22,0.00018904,2]
[333993769,1722666779782,-6089.91449812,0.00019178,2]
[333993770,1722666779792,-500.0,0.00019178,2]
[333993771,1722666779802,-2110.03,0.00019178,2]
[333993772,1722666779812,-1577.4,0.00019178,2]
[333993773,1722666779822,-5511.15,0.00019178,2]
[333993774,1722666779832,-1050.57,0.00019178,2]
[333993775,1722666779842,-500.0,0.00019178,2]
[333993776,1722666779852,-797.55,0.00019178,2]
[333993777,1722666779862,-2534.68,0.00019178,2]
[333993778,1722666779871,-500.0,0.00019178,2]
[333993779,1722666779881,-2306.35,0.00019178,2]
[333993780,1722666779891,-3191.49,0.00019178,2]
[333993781,1722666779900,-681.76,0.00019178,2]
[333993782,1722666779910,-500.0,0.00019178,2]
[333993783,1722666779920,-517.29,0.00019178,2]
[333993784,1722666779930,-2590.66,0.00019178,2]
[333993785,1722666779939,-500.0,0.00019178,2]
[333993786,1722666779949,-2269.33,0.00019178,2]
[333993787,1722666779959,-500.0,0.00019178,2]
[333993788,1722666779969,-4486.63,0.00019178,2]
[333993789,1722666779979,-1395.7,0.00019178,2]
[333993790,1722666779988,-571.15,0.00019178,2]
[333993791,1722666779998,-2172.92,0.00019178,2]
[333993792,1722666780008,-927.9,0.00019178,2]
[333993793,1722666780018,-642.08,0.00019178,2]
[333993794,1722666780028,-500.0,0.00019178,2]
[333993795,1722666780038,-1875.47,0.00019178,2]
[333993796,1722666780048,-551.94,0.00019178,2]
[333993797,1722666780058,-1703.59,0.00019178,2]
[333993798,1722666780068,-1746.66,0.00019178,2]
[333993799,1722666780077,-500.0,0.00019178,2]
[333993800,1722666780087,-784.82,0.00019178,2]
[333993801,1722666780097,-591.2,0.00019178,2]
[333993802,1722666780108,-849.08,0.00019178,2]
[333993803,1722666780118,-3768.21,0.00019178,2]
[333993804,1722666780127,-400.0,0.00019178,2]
[333993805,1722666780137,-876.21,0.00019178,2]
[333993806,1722666780147,-1805.68,0.00019178,2]
[333993807,1722666780156,-3769.02,0.00019178,2]
[333993808,1722666780166,-2265.81,0.00019178,2]
[333993809,1722666780176,-824.9,0.00019178,2]
[333993810,1722666780186,-1540.49,0.00019178,2]
[333993811,1722666780196,-614.94,0.00019178,2]
[333993812,1722666780206,-3761.09,0.00019178,2]
[333993813,1722666780216,-5639.15,0.00019178,2]
[333993814,1722666780226,-3464.14,0.00019178,2]
[333993815,1722666780236,-2239.27,0.00019178,2]
[333993816,1722666780246,-617.86,0.00019178,2]
[333993817,1722666780256,-650.38,0.00019178,2]
[333993818,1722666780266,-991.2,0.00019178,2]
[333993819,1722666780276,-3794.93,0.00019178,2]
[333993820,1722666780286,-500.0,0.00019178,2]
[333993821,1722666780296,-6154.67,0.00019178,2]
[333993822,1722666780306,-610.3,0.00019178,2]
[333993823,1722666780316,-1846.35,0.00019178,2]
[333993824,1722666780326,-2062.14,0.00019178,2]
[333993825,1722666780336,-7006.55,0.00019178,2]
[333993826,1722666780345,-500.0,0.00019178,2]
[333993827,1722666780355,-379.0509506,0.00019178,2]
[333993828,1722666780364,-654.74,0.00019178,2]
[333993829,1722666780374,-2260.06,0.00019178,2]
[333993830,1722666780384,-1671.01,0.00019178,2]
[333993831,1722666780395,-810.7,0.00019178,2]
[333993832,1722666780405,-2426.51,0.00019178,2]
[333993833,1722666780415,-500.0,0.00019178,2]
[333993834,1722666780425,-9425.49,0.00019178,2]
[333993835,1722666780435,-1017.09,0.00019178,2]
[333993836,1722666780445,-706.97,0.00019178,2]
[333993837,1722666780455,-500.0,0.00019178,2]
[333993838,1722666780465,-9197.15,0.00019178,2]
[333993839,1722666780475,-1431.9,0.00019178,2]
[333993840,1722666780484,-16361.17624683,0.00019178,2]
[333993841,1722666780497,-270.59,0.00019178,2]
[333993842,1722666780525,-552.42,0.0001726,2]
[333993843,1722666780534,-1360.09,0.00017808,2]
[333993844,1722666780544,-500.0,0.00018356,2]
[333993845,1722666780554,-2329.04375317,0.00019178,2]
[333993846,1722666780564,-500.0,0.00019178,2]
[333993847,1722666780574,-803.92,0.00019178,2]
[333993848,1722666780584,-666.06,0.00019178,2]
[333993849,1722666780593,-2204.57,0.00019178,2]
[333993850,1722666780604,-1958.7,0.00019178,2]
[333993851,1722666780614,-2126.17,0.00019178,2]
[333993852,1722666780623,-684.75,0.00019178,2]
[333993853,1722666780633,-2113.7,0.00019178,2]
[333993854,1722666780642,-580.14,0.00019178,2]
[333993855,1722666780651,-876.59,0.00019178,2]
[333993856,1722666780664,-3958.71,0.00019178,2]
[333993857,1722666780674,-1366.09,0.00019178,2]
[333993858,1722666780683,-1636.82,0.00019178,2]
[333993859,1722666780693,-3068.73,0.00019178,2]
[333993860,1722666780704,-1915.63,0.00019178,2]
[333993861,1722666780714,-2609.6,0.00019178,2]
[333993862,1722666780723,-1156.97,0.00019178,2]
[333993863,1722666780736,-1837.83,0.00019178,2]
[333993864,1722666780745,-735.07,0.00019178,2]
[333993865,1722666780755,-583.63,0.00019178,2]
[333993866,1722666780765,-664.37,0.00019178,2]
[333993867,1722666780774,-2322.65,0.00019178,2]
[333993868,1722666780784,-500.0,0.00019178,2]
[333993869,1722666780794,-651.05,0.00019178,2]
[333993870,1722666780803,-1304.49,0.00019178,2]
[333993871,1722666780812,-500.0,0.00019178,2]
[333993872,1722666780822,-150.0,0.00019187,2]
[333993873,1722666780831,-11719.72147667,0.00019257,2]
[333993874,1722666780841,-1000.0,0.00019278,2]
[333993875,1722666780850,-834.21,0.00019328,2]
[333993876,1722666780860,-420.52,0.00019328,2]
[333993877,1722666780869,-420.52,0.00019328,2]
[333993878,1722666780879,-420.52,0.00019328,2]
[333993879,1722666780890,-1668.27,0.00019328,2]
[333993880,1722666780899,-986.96,0.00019328,2]
[333993881,1722666780908,-1635.40505848,0.00019394,2]
[333993882,1722666780918,-211.48345581,0.00019394,2]
[333993883,1722666780927,-17400.33901699,0.00019394,2]
[333993884,1722666780937,-687.57340349,0.00019394,2]
[333993885,1722666780946,-17400.33901699,0.00019394,2]
[333993886,1722666780955,-360.41789915,0.00019394,60]
[333993887,1722666780965,-155.1183536,0.00019394,2]
[333993888,1722666780974,-2000.0,0.000194,2]
[333993889,1722666780983,-150.0,0.00019451,2]
[333993890,1722666780993,-500.0,0.00019452,2]
[333993891,1722666781002,-2402.24,0.00019452,2]
[333993892,1722666781011,-1658.78234811,0.00019452,2]
[333993893,1722666781020,-500.0,0.00019452,2]
[333993894,1722666781029,-500.0,0.00019452,2]
[333993895,1722666781038,-989.73,0.00019452,2]
[333993896,1722666781047,-352.74435837,0.00019452,2]
[333993897,1722666781056,-788.91,0.00019452,2]
[333993898,1722666781066,-500.0,0.00019452,2]
[333993899,1722666781075,-500.0,0.00019452,2]
[333993900,1722666781084,-500.0,0.00019452,2]
[333993901,1722666781093,-500.0,0.00019452,2]
[333993902,1722666781102,-500.0,0.00019452,2]
[333993903,1722666781111,-567.17,0.00019452,2]
[333993904,1722666781121,-500.0,0.00019452,2]
[333993905,1722666781130,-500.0,0.00019452,2]
[333993906,1722666781139,-500.0,0.00019452,2]
[333993907,1722666781149,-1103.75,0.00019452,2]
[333993908,1722666781158,-500.0,0.00019452,2]
[333993909,1722666781167,-1066.77,0.00019452,2]
[333993910,1722666781176,-593.51,0.00019452,2]
[333993911,1722666781185,-766.07,0.00019452,2]
[333993912,1722666781195,-758.83,0.00019452,2]
[333993913,1722666781204,-1147.83,0.00019452,2]
[333993914,1722666781213,-569.94,0.00019452,2]
[333993915,1722666781223,-500.0,0.00019452,2]
[333993916,1722666781232,-500.0,0.00019452,2]
[333993917,1722666781241,-500.0,0.00019452,2]
[333993918,1722666781251,-500.0,0.00019452,2]
[333993919,1722666781401,-435.05059333,0.00019452,2]
[333993920,1722666781411,-500.0,0.00019452,2]
[333993921,1722666781421,-800.64,0.00019452,2]
[333993922,1722666781432,-715.96,0.00019452,2]
[333993923,1722666781441,-500.0,0.00019452,2]
[333993924,1722666781451,-500.0,0.00019452,2]
[333993925,1722666781461,-500.0,0.00019452,2]
[333993926,1722666781471,-500.0,0.00019452,2]
[333993927,1722666781480,-517.53,0.00019452,2]
[333993928,1722666781490,-702.72,0.00019452,2]
[333993929,1722666781500,-937.04,0.00019452,2]
[333993930,1722666781509,-500.0,0.00019452,2]
[333993931,1722666781518,-500.0,0.00019452,2]
[333993932,1722666781543,-592.08403358,0.00019452,2]
[333993933,1722666781553,-500.0,0.00019452,2]
[333993934,1722666781563,-500.0,0.00019452,2]
[333993935,1722666781572,-887.0,0.00019452,2]
[333993936,1722666781583,-500.0,0.00019452,2]
[333993937,1722666781592,-810.08,0.00019452,2]
[333993938,1722666781602,-500.0,0.00019452,2]
[333993939,1722666781611,-544.56,0.00019452,2]
[333993940,1722666781621,-500.0,0.00019452,2]
[333993941,1722666781632,-603.96,0.00019452,2]
[333993942,1722666781644,-500.0,0.00019452,2]
[333993943,1722666781654,-1120.78,0.00019452,2]
[333993944,1722666781668,-794.41,0.00019452,2]
[333993945,1722666781678,-217.57115162,0.00019452,2]
[333993946,1722666781688,-1111.45,0.00019452,2]
[333993947,1722666781697,-633.16,0.00019452,2]
[333993948,1722666781707,-500.0,0.00019452,2]
[333993949,1722666781718,-742.79,0.00019452,2]
[333993950,1722666781731,-500.0,0.00019452,2]
[333993951,1722666781744,-500.0,0.00019452,2]
[333993952,1722666781754,-500.0,0.00019452,2]
[333993953,1722666781763,-500.41,0.00019452,2]
[333993954,1722666781773,-1144.59,0.00019452,2]
[333993955,1722666781784,-591.2,0.00019452,2]
[333993956,1722666781796,-500.0,0.00019452,2]
[333993957,1722666781807,-500.0,0.00019452,2]
[333993958,1722666781819,-500.0,0.00019452,2]
[333993959,1722666781830,-500.0,0.00019452,2]
[333993960,1722666781841,-500.0,0.00019452,2]
[333993961,1722666781851,-667.95,0.00019452,2]
[333993962,1722666781863,-500.0,0.00019452,2]
[333993963,1722666781873,-1017.87,0.00019452,2]
[333993964,1722666781883,-586.31,0.00019452,2]
[333993965,1722666781892,-710.02,0.00019452,2]
[333993966,1722666781902,-500.0,0.00019452,2]
[333993967,1722666781912,-1326.03,0.00019452,2]
[333993968,1722666781921,-628.24,0.00019452,2]
[333993969,1722666781931,-689.07,0.00019452,2]
[333993970,1722666781941,-500.0,0.00019452,2]
[333993971,1722666781951,-554.01,0.00019452,2]
[333993972,1722666781961,-500.0,0.00019452,2]
[333993973,1722666781971,-835.2,0.00019452,2]
[333993974,1722666781981,-500.0,0.00019452,2]
[333993975,1722666781991,-500.0,0.00019452,2]
[333993976,1722666782001,-541.45,0.00019452,2]
[333993977,1722666782011,-500.0,0.00019452,2]
[333993978,1722666782020,-502.17747555,0.00019452,2]
[333993979,1722666782031,-1060.7,0.00019452,2]
[333993980,1722666782040,-561.25,0.00019452,2]
[333993981,1722666782050,-573.22,0.00019452,2]
[333993982,1722666782060,-500.0,0.00019452,2]
[333993983,1722666782069,-500.0,0.00019452,2]
[333993984,1722666782079,-686.47,0.00019452,2]
[333993985,1722666782089,-1223.77,0.00019452,2]
[333993986,1722666782099,-536.51,0.00019452,2]
[333993987,1722666782108,-500.0,0.00019452,2]
[333993988,1722666782119,-500.0,0.00019452,2]
[333993989,1722666782130,-353.1718505,0.00019452,2]
[333993990,1722666782139,-500.0,0.00019452,2]
[333993991,1722666782149,-1013.66,0.00019452,2]
[333993992,1722666782158,-246.19009603,0.00019452,2]
[333993993,1722666782168,-581.73,0.00019452,2]
[333993994,1722666782178,-500.0,0.00019452,2]
[333993995,1722666782187,-500.0,0.00019452,2]
[333993996,1722666782197,-818.75,0.00019452,2]
[333993997,1722666782206,-500.0,0.00019452,2]
[333993998,1722666782216,-500.0,0.00019452,2]
[333993999,1722666782226,-500.0,0.00019452,2]
[333994000,1722666782236,-500.0,0.00019452,2]
[333994001,1722666782245,-500.0,0.00019452,2]
[333994002,1722666782255,-500.0,0.00019452,2]
[333994003,1722666782265,-500.0,0.00019452,2]
[333994004,1722666782276,-500.0,0.00019452,2]
[333994005,1722666782286,-899.56,0.00019452,2]
[333994006,1722666782295,-1080.66,0.00019452,2]
[333994007,1722666782304,-500.0,0.00019452,2]
[333994008,1722666782314,-500.0,0.00019452,2]
[333994009,1722666782323,-713.4,0.00019452,2]
[333994010,1722666782333,-500.0,0.00019452,2]
[333994011,1722666782343,-513.0,0.00019452,2]
[333994012,1722666782353,-1040.19,0.00019452,2]
[333994013,1722666782363,-500.0,0.00019452,2]
[333994014,1722666782373,-992.68,0.00019452,2]
[333994015,1722666782382,-521.61,0.00019452,2]
[333994016,1722666782392,-577.74,0.00019452,2]
[333994017,1722666782402,-500.0,0.00019452,2]
[333994018,1722666782411,-645.01,0.00019452,2]
[333994019,1722666782422,-500.0,0.00019452,2]
[333994020,1722666782432,-500.0,0.00019452,2]
[333994021,1722666782442,-500.0,0.00019452,2]
[333994022,1722666782452,-775.07,0.00019452,2]
[333994023,1722666782462,-337.02074313,0.00019452,2]
[333994024,1722666782472,-500.0,0.00019452,2]
[333994025,1722666782482,-968.44,0.00019452,2]
[333994026,1722666782492,-1060.45,0.00019452,2]
[333994027,1722666782502,-500.0,0.00019452,2]
[333994028,1722666782511,-925.11,0.00019452,2]
[333994029,1722666782521,-500.0,0.00019452,2]
[333994030,1722666782531,-889.34,0.00019452,2]
[333994031,1722666782540,-500.0,0.00019452,2]
[333994032,1722666782550,-500.0,0.00019452,2]
[333994033,1722666782560,-500.0,0.00019452,2]
[333994034,1722666782570,-593.73,0.00019452,2]
[333994035,1722666782579,-226.44208051,0.00019452,2]
[333994036,1722666782589,-426.40452602,0.00019452,2]
[333994037,1722666782598,-500.0,0.00019452,2]
[333994038,1722666782608,-500.0,0.00019452,2]
[333994039,1722666782617,-637.94,0.00019452,2]
[333994040,1722666782627,-1442.56,0.00019452,2]
[333994041,1722666782636,-720.84,0.00019452,2]
[333994042,1722666782646,-500.0,0.00019452,2]
[333994043,1722666782656,-997.26,0.00019452,2]
[333994044,1722666782875,-600.01,0.00019452,2]
[333994045,1722666782885,-959.37,0.00019452,2]
[333994046,1722666782895,-500.0,0.00019452,2]
[333994047,1722666782904,-590.48,0.00019452,2]
[333994048,1722666782913,-539.49,0.00019452,2]
[333994049,1722666782924,-1113.83,0.00019452,2]
[333994050,1722666782934,-663.54,0.00019452,2]
[333994051,1722666782944,-500.0,0.00019452,2]
[333994052,1722666782954,-668.52,0.00019452,2]
[333994053,1722666782963,-500.0,0.00019452,2]
[333994054,1722666782974,-1284.57,0.00019452,2]
[333994055,1722666782985,-500.0,0.00019452,2]
[333994056,1722666782995,-729.2,0.00019452,2]
[333994057,1722666783004,-500.0,0.00019452,2]
[333994058,1722666783014,-1148.49,0.00019452,2]
[333994059,1722666783024,-650.33,0.00019452,2]
[333994060,1722666783034,-527.89,0.00019452,2]
[333994061,1722666783044,-1657.53,0.00019452,2]
[333994062,1722666783054,-643.1,0.00019452,2]
[333994063,1722666783064,-691.5,0.00019452,2]
[333994064,1722666783075,-1385.68,0.00019452,2]
[333994065,1722666783085,-534.08,0.00019452,2]
[333994066,1722666783095,-500.0,0.00019452,2]
[333994067,1722666783104,-923.84,0.00019452,2]
[333994068,1722666783114,-1314.98,0.00019452,2]
[333994069,1722666783124,-891.69,0.00019452,2]
[333994070,1722666783134,-1413.97,0.00019452,2]
[333994071,1722666783143,-518.53,0.00019452,2]
[333994072,1722666783153,-500.0,0.00019452,2]
[333994073,1722666783163,-1485.86,0.00019452,2]
[333994074,1722666783173,-679.92,0.00019452,2]
[333994075,1722666783182,-500.0,0.00019452,2]
[333994076,1722666783192,-500.0,0.00019452,2]
[333994077,1722666783202,-1833.06,0.00019452,2]
[333994078,1722666783211,-528.86,0.00019452,2]
[333994079,1722666783220,-1392.35,0.00019452,2]
[333994080,1722666783230,-557.98,0.00019452,2]
[333994081,1722666783239,-500.0,0.00019452,2]
[333994082,1722666783249,-500.0,0.00019452,2]
[333994083,1722666783259,-1735.04,0.00019452,2]
[333994084,1722666783269,-1099.4,0.00019452,2]
[333994085,1722666783279,-500.0,0.00019452,2]
[333994086,1722666783288,-505.74,0.00019452,2]
[333994087,1722666783298,-516.73,0.00019452,2]
[333994088,1722666783307,-587.0,0.00019452,2]
[333994089,1722666783317,-563.21,0.00019452,2]
[333994090,1722666783328,-540.15,0.00019452,2]
[333994091,1722666783338,-500.0,0.00019452,2]
[333994092,1722666783347,-866.45,0.00019452,2]
[333994093,1722666783358,-500.0,0.00019452,2]
[333994094,1722666783368,-647.2,0.00019452,2]
[333994095,1722666783377,-500.0,0.00019452,2]
[333994096,1722666783387,-1057.56,0.00019452,2]
[333994097,1722666783397,-554.21,0.00019452,2]
[333994098,1722666783407,-500.0,0.00019452,2]
[333994099,1722666783416,-1267.48,0.00019452,2]
[333994100,1722666783426,-500.0,0.00019452,2]
[333994101,1722666783436,-1285.81,0.00019452,2]
[333994102,1722666783446,-1985.89,0.00019452,2]
[333994103,1722666783456,-500.0,0.00019452,2]
[333994104,1722666783466,-500.0,0.00019452,2]
[333994105,1722666783476,-770.94,0.00019452,2]
[333994106,1722666783486,-648.16,0.00019452,2]
[333994107,1722666783496,-1048.81,0.00019452,2]
[333994108,1722666783506,-500.0,0.00019452,2]
[333994109,1722666783515,-1630.37,0.00019452,2]
[333994110,1722666783525,-500.0,0.00019452,2]
[333994111,1722666783535,-942.02,0.00019452,2]
[333994112,1722666783545,-500.0,0.00019452,2]
[333994113,1722666783556,-500.0,0.00019452,2]
[333994114,1722666783565,-500.0,0.00019452,2]
[333994115,1722666783575,-702.76,0.00019452,2]
[333994116,1722666783585,-500.0,0.00019452,2]
[333994117,1722666783595,-500.0,0.00019452,2]
[333994118,1722666783604,-516.15137439,0.00019452,2]
[333994119,1722666783614,-1612.19,0.00019452,2]
[333994120,1722666783624,-500.0,0.00019452,2]
[333994121,1722666783634,-1146.11,0.00019452,2]
[333994122,1722666783643,-764.88,0.00019452,2]
[333994123,1722666783654,-500.0,0.00019452,2]
[333994124,1722666783666,-1869.99,0.00019452,2]
[333994125,1722666783676,-500.0,0.00019452,2]
[333994126,1722666783686,-1937.58,0.00019452,2]
[333994127,1722666783696,-1092.19,0.00019452,2]
[333994128,1722666783707,-500.0,0.00019452,2]
[333994129,1722666783716,-1144.97,0.00019452,2]
[333994130,1722666783725,-1286.39,0.00019452,2]
[333994131,1722666783736,-500.0,0.00019452,2]
[333994132,1722666783747,-1257.28,0.00019452,2]
[333994133,1722666783757,-575.74,0.00019452,2]
[333994134,1722666783767,-500.0,0.00019452,2]
[333994135,1722666783776,-500.0,0.00019452,2]
[333994136,1722666783786,-790.36,0.00019452,2]
[333994137,1722666783796,-1056.65,0.00019452,2]
[333994138,1722666783805,-682.23,0.00019452,2]
[333994139,1722666783815,-831.9,0.00019452,2]
[333994140,1722666783825,-1274.51,0.00019452,2]
[333994141,1722666783835,-971.42,0.00019452,2]
[333994142,1722666783845,-1312.76,0.00019452,2]
[333994143,1722666783854,-500.0,0.00019452,2]
[333994144,1722666783864,-500.0,0.00019452,2]
[333994145,1722666783873,-500.0,0.00019452,2]
[333994146,1722666783884,-500.0,0.00019452,2]
[333994147,1722666783893,-500.0,0.00019452,2]
[333994148,1722666783903,-1074.3,0.00019452,2]
[333994149,1722666783913,-500.0,0.00019452,2]
[333994150,1722666783923,-634.32,0.00019452,2]
[333994151,1722666783932,-500.0,0.00019452,2]
[333994152,1722666783942,-564.14,0.00019452,2]
[333994153,1722666783951,-786.52,0.00019452,2]
[333994154,1722666783960,-500.0,0.00019452,2]
[333994155,1722666783970,-500.0,0.00019452,2]
[333994156,1722666783979,-500.0,0.00019452,2]
[333994157,1722666784297,-1029.12,0.00019452,2]
[333994158,1722666784348,-837.07,0.00019452,2]
[333994159,1722666784359,-500.0,0.00019452,2]
[333994160,1722666784369,-1796.88,0.00019452,2]
[333994161,1722666784379,-500.0,0.00019452,2]
[333994162,1722666784388,-1732.55,0.00019452,2]
[333994163,1722666784398,-500.0,0.00019452,2]
[333994164,1722666784409,-1573.42,0.00019452,2]
[333994165,1722666784419,-500.0,0.00019452,2]
[333994166,1722666784428,-1076.12,0.00019452,2]
[333994167,1722666784438,-854.91,0.00019452,2]
[333994168,1722666784449,-500.0,0.00019452,2]
[333994169,1722666784459,-500.0,0.00019452,2]
[333994170,1722666784469,-737.63,0.00019452,2]
[333994171,1722666784479,-1711.13,0.00019452,2]
[333994172,1722666784489,-500.0,0.00019452,2]
[333994173,1722666784499,-500.0,0.00019452,2]
[333994174,1722666784510,-500.0,0.00019452,2]
[333994175,1722666784520,-599.32,0.00019452,2]
[333994176,1722666784530,-500.0,0.00019452,2]
[333994177,1722666784540,-1490.49,0.00019452,2]
[333994178,1722666784551,-686.99,0.00019452,2]
[333994179,1722666784561,-941.41,0.00019452,2]
[333994180,1722666784571,-500.0,0.00019452,2]
[333994181,1722666784581,-683.87,0.00019452,2]
[333994182,1722666784591,-925.99,0.00019452,2]
[333994183,1722666784600,-500.0,0.00019452,2]
[333994184,1722666784609,-518.33,0.00019452,2]
[333994185,1722666784620,-1190.09,0.00019452,2]
[333994186,1722666784630,-500.0,0.00019452,2]
[333994187,1722666784640,-500.0,0.00019452,2]
[333994188,1722666784649,-775.59,0.00019452,2]
[333994189,1722666784659,-850.78,0.00019452,2]
[333994190,1722666784673,-500.0,0.00019452,2]
[333994191,1722666784683,-500.0,0.00019452,2]
[333994192,1722666784692,-1249.02,0.00019452,2]
[333994193,1722666784702,-1150.61,0.00019452,2]
[333994194,1722666784713,-1183.94,0.00019452,2]
[333994195,1722666784723,-500.0,0.00019452,2]
[333994196,1722666784734,-500.0,0.00019452,2]
[333994197,1722666784746,-714.61,0.00019452,2]
[333994198,1722666784758,-500.0,0.00019452,2]
[333994199,1722666784767,-619.81,0.00019452,2]
[333994200,1722666784777,-1412.03,0.00019452,2]
[333994201,1722666784787,-557.22,0.00019452,2]
[333994202,1722666784796,-500.0,0.00019452,2]
[333994203,1722666784806,-500.0,0.00019452,2]
[333994204,1722666784816,-901.04,0.00019452,2]
[333994205,1722666784825,-1245.11,0.00019452,2]
[333994206,1722666784835,-1551.65,0.00019452,2]
[333994207,1722666784846,-829.01,0.00019452,2]
[333994208,1722666784855,-563.09,0.00019452,2]
[333994209,1722666784866,-523.94,0.00019452,2]
[333994210,1722666784875,-1086.27,0.00019452,2]
[333994211,1722666784885,-554.91,0.00019452,2]
[333994212,1722666784895,-353.22793451,0.00019452,2]
[333994213,1722666784921,-112.71206549,0.00019452,2]
[333994214,1722666784931,-500.0,0.00019452,2]
[333994215,1722666784940,-1346.52,0.00019452,2]
[333994216,1722666784950,-1087.56,0.00019452,2]
[333994217,1722666784960,-1404.5,0.00019452,2]
[333994218,1722666784969,-500.0,0.00019452,2]
[333994219,1722666784979,-500.0,0.00019452,2]
[333994220,1722666784990,-500.0,0.00019452,2]
[333994221,1722666784999,-783.81,0.00019452,2]
[333994222,1722666785009,-1194.19329454,0.00019452,2]
[333994223,1722666785777,-938.72103182,0.0001331,2]
[333994224,1722666785790,-4469.21404931,0.0001331,2]
[333994225,1722666785801,-5604.20710736,0.00013537,2]
[333994226,1722666785812,-1135.0,0.00015999,2]
[333994227,1722666785823,-500.0,0.00016438,2]
[333994228,1722666785834,-500.0,0.00016438,2]
[333994229,1722666785844,-397.93,0.00016712,2]
[333994230,1722666785854,-1570.63,0.00016986,2]
[333994231,1722666785864,-720.56318198,0.00017259,2]
[333994232,1722666785874,-1570.63,0.0001726,2]
[333994233,1722666785884,-552.42,0.00017534,2]
[333994234,1722666785893,-1570.63,0.00017534,2]
[333994235,1722666785903,-170.08454669,0.00017782,2]
[333994236,1722666785912,-166.88542039,0.00017782,2]
[333994237,1722666785921,-196.9568717,0.00017782,2]
[333994238,1722666785931,-196.60966023,0.00017782,2]
[333994239,1722666785941,-155.28337221,0.00017799,2]
[333994240,1722666785951,-188.63628821,0.00017799,2]
[333994241,1722666785960,-155.20409106,0.00017799,2]
[333994242,1722666785970,-380.70530097,0.00017799,2]
[333994243,1722666785979,-186.49515077,0.00017799,2]
[333994244,1722666785988,-494.08968931,0.00017799,2]